lending/lending_fUSD_20250808
["ID","MTS","AMOUNT","RATE_DAILY","PERIOD"]
[378007438,1754665861138,-500.0,0.00019073,2]
[378007439,1754665861152,-507.29569635,0.00019073,2]
[378007440,1754665861166,-500.0,0.00019073,2]
[378007441,1754665861176,-500.0,0.00019073,2]
[378007442,1754665861196,-442.95543024,0.00019073,2]
[378007443,1754665861205,-500.0,0.00019073,2]
[378007444,1754665861214,-500.0,0.00019073,2]
[378007445,1754665861224,-500.0,0.00019073,2]
[378007446,1754665861233,-500.0,0.00019073,2]
[378007447,1754665861243,-500.0,0.00019073,2]
[378007448,1754665861252,-500.0,0.00019073,2]
[378007449,1754665861262,-500.0,0.00019073,2]
[378007450,1754665861271,-4063.02018141,0.00019084,2]
[378007451,1754665861280,-168.0,0.00019095,2]
[378007452,1754665861290,-1000.0,0.00019099,2]
[378007453,1754665861301,-1000.0,0.00019099,2]
[378007454,1754665861310,-914.1,0.00019099,2]
[378007455,1754665861319,-219.77,0.000191,2]
[378007456,1754665861329,-200.0,0.000191,2]
[378007457,1754665861338,-200.631943,0.000191,2]
[378007458,1754665861348,-399.572307,0.000191,2]
[378007459,1754665861358,-399.572307,0.000191,2]
[378007460,1754665861368,-268.806,0.000191,2]
[378007461,1754665861377,-203.0,0.000191,2]
[378007462,1754665861387,-151.0,0.000191,2]
[378007463,1754665861397,-150.252,0.000191,2]
[378007464,1754665861406,-151.348,0.000191,2]
[378007465,1754665861416,-150.0,0.000191,2]
[378007466,1754665861426,-150.762,0.000191,2]
[378007467,1754665861435,-204.59,0.000191,2]
[378007468,1754665861445,-257.08,0.000191,2]
[378007469,1754665861455,-253.434,0.000191,2]
[378007470,1754665861465,-292.297,0.000191,2]
[378007471,1754665861474,-150.0,0.000191,2]
[378007472,1754665861483,-150.0,0.000191,2]
[378007473,1754665861495,-151.0,0.000191,2]
[378007474,1754665861505,-151.0,0.000191,2]
[378007475,1754665861514,-236.920887,0.000191,2]
[378007476,1754665861524,-151.0,0.000191,2]
[378007477,1754665861534,-188.393509,0.000191,2]
[378007478,1754665861543,-188.393509,0.000191,2]
[378007479,1754665861554,-153.277696,0.000191,2]
[378007480,1754665861563,-151.0,0.000191,2]
[378007481,1754665861573,-151.0,0.000191,2]
[378007482,1754665861583,-294.672971,0.000191,2]
[378007483,1754665861592,-294.672971,0.000191,2]
[378007484,1754665861602,-956.0,0.000191,2]
[378007485,1754665861612,-3364.0,0.000191,2]
[378007486,1754665861621,-810.0,0.000191,2]
[378007487,1754665861631,-1252.0,0.000191,2]
[378007488,1754665861644,-565.0,0.000191,2]
[378007489,1754665861654,-1294.0,0.000191,2]
[378007490,1754665861663,-2025.0,0.000191,2]
[378007491,1754665861674,-659.587,0.000191,2]
[378007492,1754665861684,-151.0,0.000191,2]
[378007493,1754665861694,-368.599366,0.000191,2]
[378007494,1754665861704,-368.599366,0.000191,2]
[378007495,1754665861715,-255.832727,0.000191,2]
[378007496,1754665861725,-255.832727,0.000191,2]
[378007497,1754665861734,-151.0,0.000191,2]
[378007498,1754665861744,-284.540494,0.000191,2]
[378007499,1754665861755,-203.618454,0.000191,2]
[378007500,1754665861765,-203.618454,0.000191,2]
[378007501,1754665861775,-151.0,0.000191,2]
[378007502,1754665861784,-888.103447,0.000191,2]
[378007503,1754665861794,-151.0,0.000191,2]
[378007504,1754665861805,-888.103447,0.000191,2]
[378007505,1754665861815,-5511.0,0.000191,5]
[378007506,1754665861824,-233.0,0.0001911,2]
[378007507,1754665861834,-168.0,0.00019113,2]
[378007508,1754665861844,-151.0,0.00019123,2]
[378007509,1754665861853,-151.0,0.00019123,2]
[378007510,1754665861863,-151.0,0.00019123,2]
[378007511,1754665861873,-177.967364,0.00019123,2]
[378007512,1754665861884,-5261.369985,0.00019123,2]
[378007513,1754665861894,-5261.369985,0.00019123,2]
[378007514,1754665861903,-177.967364,0.00019123,2]
[378007515,1754665861912,-151.0,0.00019123,2]
[378007516,1754665861922,-218.556623,0.00019123,2]
[378007517,1754665861932,-218.556623,0.00019123,2]
[378007518,1754665861942,-178.807506,0.00019123,2]
[378007519,1754665861952,-178.807506,0.00019123,2]
[378007520,1754665861962,-151.0,0.00019123,2]
[378007521,1754665861973,-151.0,0.00019123,2]
[378007522,1754665861984,-151.0,0.00019123,2]
[378007523,1754665861994,-467.24,0.00019123,2]
[378007524,1754665862005,-1230.74979204,0.0001914,2]
[378007525,1754665862015,-154.292219,0.00019152,2]
[378007526,1754665862025,-253.951013,0.00019152,2]
[378007527,1754665862035,-151.0,0.00019152,2]
[378007528,1754665862045,-151.0,0.00019152,2]
[378007529,1754665862055,-151.0,0.00019152,2]
[378007530,1754665862064,-151.0,0.00019152,2]
[378007531,1754665862074,-151.0,0.00019152,2]
[378007532,1754665862083,-292.902666,0.00019152,2]
[378007533,1754665862093,-151.0,0.00019152,2]
[378007534,1754665862103,-205.32114,0.00019152,2]
[378007535,1754665862113,-205.32114,0.00019152,2]
[378007536,1754665862122,-151.0,0.00019152,2]
[378007537,1754665862132,-151.0,0.00019152,2]
[378007538,1754665862141,-540.76206,0.0001916,2]
[378007539,1754665862151,-168.0,0.00019173,2]
[378007540,1754665862160,-151.0,0.00019173,2]
[378007541,1754665862170,-1279.58,0.00019177,2]
[378007542,1754665862180,-500.0,0.00019178,2]
[378007543,1754665862191,-151.0,0.00019178,2]
[378007544,1754665862202,-151.0,0.00019178,2]
[378007545,1754665862212,-151.0,0.00019178,2]
[378007546,1754665862223,-151.0,0.00019178,2]
[378007547,1754665862233,-151.0,0.00019178,2]
[378007548,1754665862242,-170.498119,0.00019178,2]
[378007549,1754665862252,-400.0,0.00019178,2]
[378007550,1754665862262,-400.0,0.00019178,2]
[378007551,1754665862273,-414.95783721,0.00019178,2]
[378007552,1754665862283,-2001.02431467,0.00019178,2]
[378007553,1754665862293,-151.0,0.00019178,2]
[378007554,1754665862305,-151.0,0.00019178,2]
[378007555,1754665862315,-151.0,0.00019178,2]
[378007556,1754665862325,-151.0,0.00019178,2]
[378007557,1754665862335,-151.0,0.00019178,2]
[378007558,1754665862345,-151.0,0.00019178,2]
[378007559,1754665862355,-249.163928,0.00019178,2]
[378007560,1754665862364,-15636.97,0.00019178,2]
[378007561,1754665862374,-14840.88,0.00019178,2]
[378007562,1754665862384,-326.22,0.00019178,2]
[378007563,1754665862398,-346.24128439,0.00019179,2]
[378007564,1754665862409,-1214.28032899,0.0001918,2]
[378007565,1754665862418,-250.0,0.00019181,2]
[378007566,1754665862428,-192.20518642,0.00019203,2]
[378007567,1754665862438,-168.0,0.00019207,2]
[378007568,1754665862447,-914.1,0.00019209,2]
[378007569,1754665862457,-1320.02697902,0.00019223,2]
[378007570,1754665862467,-218.20888804,0.00019249,2]
[378007571,1754665862476,-3422.57,0.00019273,2]
[378007572,1754665862486,-658.93,0.00019273,2]
[378007573,1754665862496,-1660.03,0.00019273,2]
[378007574,1754665862506,-3123.08,0.00019273,2]
[378007575,1754665862515,-151.0,0.00019273,2]
[378007576,1754665862525,-3844.27,0.00019273,2]
[378007577,1754665862535,-2135.1,0.00019273,2]
[378007578,1754665862547,-4731.17,0.00019273,2]
[378007579,1754665862556,-277.06044,0.00019273,2]
[378007580,1754665862567,-1890.97,0.00019273,2]
[378007581,1754665862576,-151.0,0.00019273,2]
[378007582,1754665862586,-4802.61,0.00019273,2]
[378007583,1754665862596,-151.0,0.00019273,2]
[378007584,1754665862605,-151.0,0.00019273,2]
[378007585,1754665862615,-1946.85,0.00019273,2]
[378007586,1754665862624,-1274.17,0.00019273,2]
[378007587,1754665862635,-2174.26,0.00019273,2]
[378007588,1754665862646,-475.7,0.00019273,2]
[378007589,1754665862656,-400.0,0.00019273,2]
[378007590,1754665862666,-151.0,0.00019273,2]
[378007591,1754665862676,-151.0,0.00019273,2]
[378007592,1754665862686,-4446.0,0.00019273,2]
[378007593,1754665862695,-1915.8,0.00019273,2]
[378007594,1754665862706,-702.74,0.00019273,2]
[378007595,1754665862715,-400.0,0.00019273,2]
[378007596,1754665862725,-4942.02,0.00019273,2]
[378007597,1754665862735,-963.1,0.00019273,2]
[378007598,1754665862745,-2052.92,0.00019273,2]
[378007599,1754665862755,-585.33,0.00019273,2]
[378007600,1754665862765,-5833.49,0.00019273,2]
[378007601,1754665862775,-1677.05,0.00019273,2]
[378007602,1754665862785,-3970.95,0.00019273,2]
[378007603,1754665862796,-2534.52,0.00019273,2]
[378007604,1754665862806,-450.19,0.00019273,2]
[378007605,1754665862816,-6324.18,0.00019273,2]
[378007606,1754665862826,-1755.03,0.00019273,2]
[378007607,1754665862835,-400.0,0.00019273,2]
[378007608,1754665862845,-196.69,0.00019282,2]
[378007609,1754665862855,-500.0,0.00019288,2]
[378007610,1754665862865,-151.0,0.00019291,2]
[378007611,1754665862875,-151.0,0.00019291,2]
[378007612,1754665862884,-156.94633586,0.00019291,2]
[378007613,1754665862894,-151.0,0.00019292,2]
[378007614,1754665862906,-151.0,0.00019292,2]
[378007615,1754665862916,-151.0,0.00019293,2]
[378007616,1754665862925,-219.77,0.000193,2]
[378007617,1754665862935,-311.96427238,0.00019301,2]
[378007618,1754665862945,-495.89,0.00019301,2]
[378007619,1754665862955,-400.0,0.00019301,2]
[378007620,1754665862964,-400.0,0.00019301,2]
[378007621,1754665862973,-400.0,0.00019301,2]
[378007622,1754665862983,-458.95,0.00019301,2]
[378007623,1754665862992,-400.0,0.00019301,2]
[378007624,1754665863002,-400.0,0.00019301,2]
[378007625,1754665863012,-565.26,0.00019301,2]
[378007626,1754665863022,-400.0,0.00019301,2]
[378007627,1754665863032,-477.89241747,0.00019301,2]
[378007628,1754665863042,-432.45,0.00019301,2]
[378007629,1754665863053,-159.67963167,0.00019301,2]
[378007630,1754665863063,-400.0,0.00019301,2]
[378007631,1754665863074,-465.44,0.00019301,2]
[378007632,1754665863084,-151.0,0.00019301,2]
[378007633,1754665863094,-151.0,0.00019301,2]
[378007634,1754665863104,-151.0,0.00019301,2]
[378007635,1754665863114,-400.0,0.00019301,2]
[378007636,1754665863123,-400.0,0.00019301,2]
[378007637,1754665863133,-400.0,0.00019301,2]
[378007638,1754665863150,-400.0,0.00019301,2]
[378007639,1754665863160,-151.0,0.00019301,2]
[378007640,1754665863171,-476.53,0.00019301,2]
[378007641,1754665863181,-400.0,0.00019301,2]
[378007642,1754665863191,-151.0,0.00019301,2]
[378007643,1754665863201,-593.67,0.00019301,2]
[378007644,1754665863210,-400.0,0.00019301,2]
[378007645,1754665863220,-400.0,0.00019301,2]
[378007646,1754665863230,-497.06,0.00019301,2]
[378007647,1754665863239,-151.0,0.00019301,2]
[378007648,1754665863249,-400.0,0.00019301,2]
[378007649,1754665863259,-151.0,0.00019301,2]
[378007650,1754665863269,-504.76,0.00019301,2]
[378007651,1754665863279,-400.0,0.00019301,2]
[378007652,1754665863547,-400.0,0.00019301,2]
[378007653,1754665863558,-565.2,0.00019301,2]
[378007654,1754665863567,-400.0,0.00019301,2]
[378007655,1754665863576,-151.0,0.00019301,2]
[378007656,1754665863586,-406.416501,0.00019301,2]
[378007657,1754665863596,-400.0,0.00019301,2]
[378007658,1754665863605,-406.416501,0.00019301,2]
[378007659,1754665863614,-400.0,0.00019301,2]
[378007660,1754665863623,-400.0,0.00019301,2]
[378007661,1754665863633,-400.0,0.00019301,2]
[378007662,1754665863647,-596.46,0.00019301,2]
[378007663,1754665863657,-400.0,0.00019301,2]
[378007664,1754665863666,-457.11,0.00019301,2]
[378007665,1754665863676,-428.78,0.00019301,2]
[378007666,1754665863687,-400.0,0.00019301,2]
[378007667,1754665863697,-400.0,0.00019301,2]
[378007668,1754665863707,-400.0,0.00019301,2]
[378007669,1754665863717,-151.0,0.00019301,2]
[378007670,1754665863727,-400.0,0.00019301,2]
[378007671,1754665863737,-400.0,0.00019301,2]
[378007672,1754665863747,-400.0,0.00019301,2]
[378007673,1754665863757,-400.0,0.00019301,2]
[378007674,1754665863767,-1345.86,0.00019301,2]
[378007675,1754665863781,-632.06,0.00019301,2]
[378007676,1754665863791,-400.0,0.00019301,2]
[378007677,1754665863803,-400.0,0.00019301,2]
[378007678,1754665863814,-444.74,0.00019301,2]
[378007679,1754665863825,-400.0,0.00019301,2]
[378007680,1754665863835,-752.21,0.00019301,2]
[378007681,1754665863845,-400.0,0.00019301,2]
[378007682,1754665863856,-151.0,0.00019301,2]
[378007683,1754665863866,-501.05,0.00019301,2]
[378007684,1754665863877,-151.0,0.00019301,2]
[378007685,1754665863888,-420.23,0.00019301,2]
[378007686,1754665863898,-1263.68,0.00019301,2]
[378007687,1754665863908,-400.0,0.00019301,2]
[378007688,1754665863919,-400.0,0.00019301,2]
[378007689,1754665863928,-194.659064,0.00019301,2]
[378007690,1754665863938,-434.06863471,0.00019301,2]
[378007691,1754665863948,-194.659064,0.00019301,2]
[378007692,1754665863958,-721.41,0.00019301,2]
[378007693,1754665863968,-450.92,0.00019301,2]
[378007694,1754665863978,-151.0,0.00019301,2]
[378007695,1754665863988,-400.0,0.00019301,2]
[378007696,1754665863999,-420.59,0.00019301,2]
[378007697,1754665864009,-1220.4,0.00019301,2]
[378007698,1754665864019,-400.0,0.00019301,2]
[378007699,1754665864029,-400.0,0.00019301,2]
[378007700,1754665864039,-151.0,0.00019301,2]
[378007701,1754665864052,-1284.62,0.00019301,2]
[378007702,1754665864062,-400.0,0.00019301,2]
[378007703,1754665864072,-151.0,0.00019301,2]
[378007704,1754665864082,-176.990212,0.00019301,2]
[378007705,1754665864094,-476.8,0.00019301,2]
[378007706,1754665864104,-614.98,0.00019301,2]
[378007707,1754665864116,-176.990212,0.00019301,2]
[378007708,1754665864126,-1077.52,0.00019301,2]
[378007709,1754665864137,-400.0,0.00019301,2]
[378007710,1754665864147,-400.0,0.00019301,2]
[378007711,1754665864158,-616.12,0.00019301,2]
[378007712,1754665864168,-1124.34,0.00019301,2]
[378007713,1754665864177,-890.1,0.00019301,2]
[378007714,1754665864187,-151.0,0.00019301,2]
[378007715,1754665864198,-400.0,0.00019301,2]
[378007716,1754665864209,-400.0,0.00019301,2]
[378007717,1754665864219,-400.0,0.00019301,2]
[378007718,1754665864229,-1039.6,0.00019301,2]
[378007719,1754665864240,-400.0,0.00019301,2]
[378007720,1754665864250,-151.0,0.00019301,2]
[378007721,1754665864260,-400.0,0.00019301,2]
[378007722,1754665864270,-525.99,0.00019301,2]
[378007723,1754665864280,-400.0,0.00019301,2]
[378007724,1754665864290,-400.0,0.00019301,2]
[378007725,1754665864302,-400.0,0.00019301,2]
[378007726,1754665864312,-400.0,0.00019301,2]
[378007727,1754665864322,-535.58,0.00019301,2]
[378007728,1754665864331,-1335.94,0.00019301,2]
[378007729,1754665864341,-4227.18,0.00019301,2]
[378007730,1754665864351,-151.0,0.00019301,2]
[378007731,1754665864360,-457.02,0.00019301,2]
[378007732,1754665864370,-771.541501,0.00019301,2]
[378007733,1754665864379,-619.61,0.00019301,2]
[378007734,1754665864389,-400.0,0.00019301,2]
[378007735,1754665864399,-428.02,0.00019301,2]
[378007736,1754665864408,-771.541501,0.00019301,2]
[378007737,1754665864418,-400.0,0.00019301,2]
[378007738,1754665864428,-400.0,0.00019301,2]
[378007739,1754665864437,-463.88,0.00019301,2]
[378007740,1754665864447,-400.0,0.00019301,2]
[378007741,1754665864457,-1072.18,0.00019301,2]
[378007742,1754665864467,-151.0,0.00019301,2]
[378007743,1754665864478,-402.2,0.00019301,2]
[378007744,1754665864488,-558.58,0.00019301,2]
[378007745,1754665864497,-1273.16,0.00019301,2]
[378007746,1754665864508,-400.0,0.00019301,2]
[378007747,1754665864519,-151.0,0.00019301,2]
[378007748,1754665864528,-757.14,0.00019301,2]
[378007749,1754665864538,-400.0,0.00019301,2]
[378007750,1754665864550,-300.0,0.00019301,2]
[378007751,1754665864559,-734.74,0.00019301,2]
[378007752,1754665864569,-151.0,0.00019301,2]
[378007753,1754665864579,-400.0,0.00019301,2]
[378007754,1754665864589,-1247.21,0.00019301,2]
[378007755,1754665864600,-507.07,0.00019301,2]
[378007756,1754665864610,-400.0,0.00019301,2]
[378007757,1754665864620,-1774.87,0.00019301,2]
[378007758,1754665864630,-617.97,0.00019301,2]
[378007759,1754665864644,-400.0,0.00019301,2]
[378007760,1754665864654,-572.54,0.00019301,2]
[378007761,1754665864664,-151.0,0.00019301,2]
[378007762,1754665864673,-400.0,0.00019301,2]
[378007763,1754665864683,-400.0,0.00019301,2]
[378007764,1754665864692,-1538.06,0.00019301,2]
[378007765,1754665864702,-582.05,0.00019301,2]
[378007766,1754665864711,-474.97,0.00019301,2]
[378007767,1754665864721,-635.55,0.00019301,2]
[378007768,1754665864731,-1285.93,0.00019301,2]
[378007769,1754665864741,-400.0,0.00019301,2]
[378007770,1754665864751,-407.06,0.00019301,2]
[378007771,1754665864761,-992.47,0.00019301,2]
[378007772,1754665864771,-400.0,0.00019301,2]
[378007773,1754665864780,-498.62,0.00019301,2]
[378007774,1754665864791,-468.72,0.00019301,2]
[378007775,1754665864803,-537.34,0.00019301,2]
[378007776,1754665864813,-685.13,0.00019301,2]
[378007777,1754665864823,-368.599366,0.00019301,2]
[378007778,1754665864833,-601.37,0.00019301,2]
[378007779,1754665864844,-368.599366,0.00019301,2]
[378007780,1754665864854,-1701.51,0.00019301,2]
[378007781,1754665864864,-426.2,0.00019301,2]
[378007782,1754665864873,-1148.86,0.00019301,2]
[378007783,1754665864883,-435.54,0.00019301,2]
[378007784,1754665864892,-627.73,0.00019301,2]
[378007785,1754665864902,-541.26,0.00019301,2]
[378007786,1754665864911,-400.0,0.00019301,2]
[378007787,1754665864921,-400.0,0.00019301,2]
[378007788,1754665864930,-544.69,0.00019301,2]
[378007789,1754665864940,-552.95,0.00019301,2]
[378007790,1754665864949,-556.11,0.00019301,2]
[378007791,1754665864959,-1662.34,0.00019301,2]
[378007792,1754665864968,-255.832727,0.00019301,2]
[378007793,1754665864977,-4395.77,0.00019301,2]
[378007794,1754665864987,-255.832727,0.00019301,2]
[378007795,1754665864997,-4291.86,0.00019301,2]
[378007796,1754665865007,-628.69,0.00019301,2]
[378007797,1754665865016,-1973.62,0.00019301,2]
[378007798,1754665865026,-485.2,0.00019301,2]
[378007799,1754665865036,-151.0,0.00019301,2]
[378007800,1754665865045,-177.967364,0.00019301,2]
[378007801,1754665865056,-5261.369985,0.00019301,2]
[378007802,1754665865065,-496.84,0.00019301,2]
[378007803,1754665865075,-5261.369985,0.00019301,2]
[378007804,1754665865085,-177.967364,0.00019301,2]
[378007805,1754665865094,-1320.6,0.00019301,2]
[378007806,1754665865104,-400.0,0.00019301,2]
[378007807,1754665865115,-400.0,0.00019301,2]
[378007808,1754665865124,-1446.98,0.00019301,2]
[378007809,1754665865133,-1053.64,0.00019301,2]
[378007810,1754665865142,-2547.2,0.00019301,2]
[378007811,1754665865151,-1803.06,0.00019301,2]
[378007812,1754665865161,-430.11,0.00019301,2]
[378007813,1754665865170,-1665.08,0.00019301,2]
[378007814,1754665865180,-409.39,0.00019301,2]
[378007815,1754665865190,-400.0,0.00019301,2]
[378007816,1754665865199,-1820.22,0.00019301,2]
[378007817,1754665865209,-425.91719823,0.00019301,2]
[378007818,1754665865219,-400.0,0.00019301,2]
[378007819,1754665865228,-400.0,0.00019301,2]
[378007820,1754665865238,-1417.64,0.00019301,2]
[378007821,1754665865247,-151.0,0.00019301,2]
[378007822,1754665865257,-1595.52,0.00019301,2]
[378007823,1754665865267,-1789.44,0.00019301,2]
[378007824,1754665865276,-151.0,0.00019301,2]
[378007825,1754665865285,-218.556623,0.00019301,2]
[378007826,1754665865295,-218.556623,0.00019301,2]
[378007827,1754665865306,-1552.56,0.00019301,2]
[378007828,1754665865316,-400.0,0.00019301,2]
[378007829,1754665865326,-1635.45,0.00019301,2]
[378007830,1754665865335,-360.50454026,0.00019301,2]
[378007831,1754665865345,-1673.89,0.00019301,2]
[378007832,1754665865355,-400.0,0.00019301,2]
[378007833,1754665865365,-520.06,0.00019301,2]
[378007834,1754665865375,-1181.99,0.00019301,2]
[378007835,1754665865384,-6096.74,0.00019301,2]
[378007836,1754665865396,-1183.61,0.00019301,2]
[378007837,1754665865406,-1279.58,0.00019301,2]
[378007838,1754665865416,-400.0,0.00019301,2]
[378007839,1754665865426,-453.76,0.00019301,2]
[378007840,1754665865436,-178.807506,0.00019301,2]
[378007841,1754665865445,-178.807506,0.00019301,2]
[378007842,1754665865455,-151.0,0.00019301,2]
[378007843,1754665865464,-494.71,0.00019301,2]
[378007844,1754665865474,-1993.56,0.00019301,2]
[378007845,1754665865484,-400.0,0.00019301,2]
[378007846,1754665865494,-400.0,0.00019301,2]
[378007847,1754665865504,-2152.99,0.00019301,2]
[378007848,1754665865514,-472.5,0.00019301,2]
[378007849,1754665865523,-666.95,0.00019301,2]
[378007850,1754665865532,-4150.4,0.00019301,2]
[378007851,1754665865542,-1093.53,0.00019301,2]
[378007852,1754665865553,-400.0,0.00019301,2]
[378007853,1754665865563,-400.0,0.00019301,2]
[378007854,1754665865572,-841.05,0.00019301,2]
[378007855,1754665865582,-1410.47,0.00019301,2]
[378007856,1754665865591,-203.618454,0.00019301,2]
[378007857,1754665865601,-408.58,0.00019301,2]
[378007858,1754665865610,-400.0,0.00019301,2]
[378007859,1754665865620,-688.53,0.00019301,2]
[378007860,1754665865629,-203.618454,0.00019301,2]
[378007861,1754665865642,-8642.12,0.00019301,2]
[378007862,1754665865651,-400.0,0.00019301,2]
[378007863,1754665865660,-1161.85,0.00019301,2]
[378007864,1754665865670,-400.0,0.00019301,2]
[378007865,1754665865679,-8537.39,0.00019301,2]
[378007866,1754665865688,-151.0,0.00019301,2]
[378007867,1754665865698,-581.1,0.00019301,2]
[378007868,1754665865707,-400.0,0.00019301,2]
[378007869,1754665865716,-151.0,0.00019301,2]
[378007870,1754665865727,-151.0,0.00019301,2]
[378007871,1754665865736,-769.6,0.00019301,2]
[378007872,1754665865746,-400.0,0.00019301,2]
[378007873,1754665865756,-537.79,0.00019301,2]
[378007874,1754665865766,-888.103447,0.00019301,2]
[378007875,1754665865777,-764.64,0.00019301,2]
[378007876,1754665865787,-698.84,0.00019301,2]
[378007877,1754665865800,-151.0,0.00019301,2]
[378007878,1754665865810,-888.103447,0.00019301,2]
[378007879,1754665865820,-626.66,0.00019301,2]
[378007880,1754665865831,-7053.97,0.00019301,2]
[378007881,1754665865841,-410.12,0.00019301,2]
[378007882,1754665865851,-1437.71,0.00019301,2]
[378007883,1754665865862,-976.31,0.00019301,2]
[378007884,1754665865872,-400.0,0.00019301,2]
[378007885,1754665865882,-697.09,0.00019301,2]
[378007886,1754665865893,-1060.66,0.00019301,2]
[378007887,1754665865903,-1994.9,0.00019301,2]
[378007888,1754665865914,-2121.64,0.00019301,2]
[378007889,1754665866009,-400.0,0.00019301,2]
[378007890,1754665866020,-151.0,0.00019301,2]
[378007891,1754665866029,-400.0,0.00019301,2]
[378007892,1754665866039,-1365.08,0.00019301,2]
[378007893,1754665866050,-421.03,0.00019301,2]
[378007894,1754665866059,-6688.1,0.00019301,2]
[378007895,1754665866069,-1882.77,0.00019301,2]
[378007896,1754665866078,-1742.97,0.00019301,2]
[378007897,1754665866087,-1720.38,0.00019301,2]
[378007898,1754665866096,-164.614,0.00019302,2]
[378007899,1754665866106,-253.951013,0.00019302,2]
[378007900,1754665866115,-151.0,0.00019302,2]
[378007901,1754665866124,-151.0,0.00019302,2]
[378007902,1754665866134,-151.0,0.00019302,2]
[378007903,1754665866145,-151.0,0.00019302,2]
[378007904,1754665866154,-200.631943,0.00019302,2]
[378007905,1754665866163,-399.572307,0.00019302,2]
[378007906,1754665866173,-399.572307,0.00019302,2]
[378007907,1754665866182,-151.0,0.00019302,2]
[378007908,1754665866191,-151.0,0.00019302,2]
[378007909,1754665866201,-151.0,0.00019302,2]
[378007910,1754665866210,-151.0,0.00019302,2]
[378007911,1754665866220,-151.0,0.00019302,2]
[378007912,1754665866229,-151.0,0.00019302,2]
[378007913,1754665866238,-271.141142,0.00019302,2]
[378007914,1754665866247,-400.0,0.00019302,2]
[378007915,1754665866256,-404.35558121,0.00019302,2]
[378007916,1754665866265,-151.0,0.00019302,2]
[378007917,1754665866274,-151.0,0.00019302,2]
[378007918,1754665866283,-205.32114,0.00019302,2]
[378007919,1754665866292,-205.32114,0.00019302,2]
[378007920,1754665866305,-151.0,0.00019302,2]
[378007921,1754665866317,-400.0,0.00019302,2]
[378007922,1754665866332,-793.22,0.00019302,2]
[378007923,1754665866346,-151.0,0.00019302,2]
[378007924,1754665866356,-151.0,0.00019302,2]
[378007925,1754665866365,-188.393509,0.00019302,2]
[378007926,1754665866374,-188.393509,0.00019302,2]
[378007927,1754665866383,-188.393509,0.00019302,2]
[378007928,1754665866393,-188.393509,0.00019302,2]
[378007929,1754665866403,-400.0,0.00019302,2]
[378007930,1754665866412,-400.0,0.00019302,2]
[378007931,1754665866422,-400.0,0.00019302,2]
[378007932,1754665866431,-400.0,0.00019302,2]
[378007933,1754665866440,-400.0,0.00019302,2]
[378007934,1754665866449,-151.0,0.00019302,2]
[378007935,1754665866458,-400.0,0.00019302,2]
[378007936,1754665866467,-151.0,0.00019302,2]
[378007937,1754665866476,-151.0,0.00019302,2]